fUSD/lending_fUSD_20250117
["ID","MTS","AMOUNT","RATE_DAILY","PERIOD"]
[349348510,1737129036364,-644.3820621,0.00023195,2]
[349348512,1737129036374,-200.0,0.00023197,2]
[349348514,1737129036384,-256.04388103,0.00023197,2]
[349348517,1737129036395,-500.0,0.00023197,2]
[349348518,1737129036405,-500.0,0.00023197,2]
[349348520,1737129036414,-500.0,0.00023197,2]
[349348523,1737129036424,-500.0,0.00023197,2]
[349348524,1737129036433,-500.0,0.00023197,2]
[349348526,1737129036443,-500.0,0.00023197,2]
[349348528,1737129036453,-550.84,0.00023197,2]
[349348530,1737129036463,-500.0,0.00023197,2]
[349348532,1737129036473,-500.0,0.00023197,2]
[349348534,1737129036482,-500.0,0.00023197,2]
[349348536,1737129036492,-500.0,0.00023197,2]
[349348539,1737129036502,-499.17,0.00023197,2]
[349348541,1737129036512,-500.0,0.00023197,2]
[349348543,1737129036522,-202.56,0.00023197,2]
[349348545,1737129036532,-355.95,0.00023197,2]
[349348547,1737129036542,-154.64,0.00023197,2]
[349348549,1737129036552,-304.15,0.00023197,2]
[349348551,1737129036562,-166.66,0.00023197,2]
[349348553,1737129036571,-500.0,0.00023197,2]
[349348555,1737129036581,-500.0,0.00023197,2]
[349348557,1737129036591,-500.0,0.00023197,2]
[349348559,1737129036601,-500.0,0.00023197,2]
[349348561,1737129036611,-500.0,0.00023197,2]
[349348563,1737129036620,-277.71961347,0.00023197,2]
[349348565,1737129036630,-500.0,0.00023197,2]
[349348567,1737129036640,-269.55,0.00023197,2]
[349348569,1737129036650,-500.0,0.00023197,2]
[349348571,1737129036659,-500.0,0.00023197,2]
[349348573,1737129036669,-500.0,0.00023197,2]
[349348575,1737129036678,-500.0,0.00023197,2]
[349348577,1737129036688,-500.0,0.00023197,2]
[349348579,1737129036697,-500.0,0.00023197,2]
[349348581,1737129036707,-375.33666044,0.00023197,2]
[349348583,1737129036716,-499.7,0.00023197,2]
[349348585,1737129036725,-500.0,0.00023197,2]
[349348587,1737129036735,-500.0,0.00023197,2]
[349348589,1737129036745,-500.0,0.00023197,2]
[349348591,1737129036754,-500.0,0.00023197,2]
[349348593,1737129036763,-217.02,0.00023197,2]
[349348595,1737129036773,-423.06,0.00023197,2]
[349348597,1737129036782,-500.0,0.00023197,2]
[349348599,1737129036793,-500.0,0.00023197,2]
[349348601,1737129036803,-500.0,0.00023197,2]
[349348602,1737129036812,-500.0,0.00023197,2]
[349348603,1737129036822,-500.0,0.00023197,2]
[349348604,1737129036833,-500.0,0.00023197,2]
[349348605,1737129036843,-500.0,0.00023197,2]
[349348606,1737129036852,-500.0,0.00023197,2]
[349348607,1737129036862,-500.0,0.00023197,2]
[349348608,1737129036871,-500.0,0.00023197,2]
[349348609,1737129036881,-500.0,0.00023197,2]
[349348611,1737129036891,-175.92,0.00023197,2]
[349348613,1737129036901,-500.0,0.00023197,2]
[349348615,1737129036912,-505.72,0.00023197,2]
[349348617,1737129036921,-500.0,0.00023197,2]
[349348619,1737129036930,-500.0,0.00023197,2]
[349348621,1737129036940,-500.0,0.00023197,2]
[349348623,1737129036950,-500.0,0.00023197,2]
[349348625,1737129036960,-500.0,0.00023197,2]
[349348627,1737129036972,-500.0,0.00023197,2]
[349348629,1737129036982,-500.0,0.00023197,2]
[349348631,1737129036992,-500.0,0.00023197,2]
[349348633,1737129037002,-274.09,0.00023197,2]
[349348635,1737129037013,-500.0,0.00023197,2]
[349348637,1737129037022,-301.72,0.00023197,2]
[349348639,1737129037032,-500.0,0.00023197,2]
[349348641,1737129037043,-500.0,0.00023197,2]
[349348643,1737129037053,-500.0,0.00023197,2]
[349348645,1737129037062,-500.0,0.00023197,2]
[349348647,1737129037072,-58987.60908533,0.00023198,2]
[349348649,1737129037082,-500.0,0.00023198,2]
[349348651,1737129037092,-500.0,0.00023198,2]
[349348653,1737129037102,-432.8077758,0.00023198,2]
[349348655,1737129037112,-388.71,0.00023198,2]
[349348657,1737129037122,-500.0,0.00023198,2]
[349348659,1737129037133,-204.34,0.00023198,2]
[349348661,1737129037143,-500.0,0.00023198,2]
[349348663,1737129037153,-500.0,0.00023198,7]
[349348665,1737129037163,-500.0,0.00023198,7]
[349348667,1737129037172,-500.0,0.00023198,7]
[349348669,1737129037182,-418.87,0.00023198,2]
[349348671,1737129037191,-500.0,0.00023198,2]
[349348673,1737129037201,-208.18,0.00023198,2]
[349348675,1737129037210,-561.65,0.00023198,2]
[349348677,1737129037220,-511.43,0.00023198,2]
[349348679,1737129037229,-500.0,0.00023198,2]
[349348681,1737129037239,-173.68,0.00023198,2]
[349348683,1737129037249,-207.13,0.00023198,2]
[349348685,1737129037259,-377.27,0.00023198,2]
[349348689,1737129037269,-438.75,0.00023198,2]
[349348691,1737129037279,-452.56487938,0.00023198,2]
[349348693,1737129037289,-500.0,0.00023198,2]
[349348695,1737129037299,-500.0,0.00023198,2]
[349348697,1737129037308,-500.0,0.00023198,2]
[349348699,1737129037318,-369.09606204,0.00023198,2]
[349348701,1737129037327,-500.0,0.00023198,2]
[349348703,1737129037337,-168.54,0.00023198,2]
[349348704,1737129037347,-500.0,0.00023198,2]
[349348706,1737129037357,-542.05,0.00023198,2]
[349348709,1737129037367,-200.0,0.00023198,2]
[349348711,1737129037376,-221.63,0.00023199,2]
[349348713,1737129037386,-500.0,0.00023199,2]
[349348715,1737129037395,-500.0,0.00023199,2]
[349348717,1737129037405,-618.02551847,0.00023199,2]
[349348719,1737129037415,-500.0,0.00023199,2]
[349348721,1737129037424,-500.0,0.00023199,2]
[349348723,1737129037434,-365.5,0.00023199,2]
[349348724,1737129037443,-552.73,0.00023199,2]
[349348726,1737129037453,-1000.0,0.00023199,2]
[349348728,1737129037463,-500.0,0.00023199,2]
[349348731,1737129037473,-199.64,0.00023199,2]
[349348733,1737129037483,-596.81,0.00023199,2]
[349348735,1737129037495,-500.0,0.00023199,2]
[349348737,1737129037505,-500.0,0.00023199,2]
[349348739,1737129037515,-208.87,0.00023199,2]
[349348741,1737129037525,-500.0,0.00023199,2]
[349348743,1737129037535,-500.0,0.00023199,2]
[349348745,1737129037544,-344.84,0.00023199,2]
[349348747,1737129037553,-547.64,0.00023199,2]
[349348749,1737129037564,-500.0,0.00023199,2]
[349348751,1737129037574,-240.95310427,0.00023199,2]
[349348753,1737129037584,-500.0,0.00023199,2]
[349348755,1737129037594,-348.46,0.00023199,2]
[349348757,1737129037604,-500.0,0.00023199,2]
[349348759,1737129037614,-500.0,0.00023199,2]
[349348761,1737129037624,-500.0,0.00023199,2]
[349348763,1737129037634,-500.0,0.00023199,2]
[349348765,1737129037643,-500.0,0.00023199,2]
[349348767,1737129037654,-484.58,0.00023199,2]
[349348769,1737129037664,-441.8,0.00023199,2]
[349348771,1737129037673,-500.0,0.00023199,2]
[349348773,1737129037683,-500.0,0.00023199,2]
[349348775,1737129037694,-500.0,0.00023199,2]
[349348777,1737129037704,-500.0,0.00023199,2]
[349348780,1737129037714,-500.0,0.00023199,2]
[349348782,1737129037725,-381.32761645,0.00023199,2]
[349348784,1737129037734,-500.0,0.00023199,2]
[349348786,1737129037744,-500.0,0.00023199,2]
[349348788,1737129037754,-500.0,0.00023199,2]
[349348790,1737129037764,-500.0,0.00023199,2]
[349348792,1737129037774,-500.0,0.00023199,2]
[349348794,1737129037784,-500.0,0.00023199,2]
[349348796,1737129037794,-500.0,0.00023199,2]
[349348798,1737129037803,-397.79,0.00023199,2]
[349348800,1737129037814,-312.93,0.00023199,2]
[349348802,1737129037824,-500.0,0.00023199,2]
[349348804,1737129037833,-500.0,0.00023199,2]
[349348806,1737129037843,-244.24,0.00023199,2]
[349348808,1737129037853,-500.0,0.00023199,2]
[349348810,1737129037862,-500.0,0.00023199,2]
[349348812,1737129037872,-500.0,0.00023199,2]
[349348814,1737129037881,-500.0,0.00023199,2]
[349348816,1737129037891,-500.0,0.00023199,2]
[349348818,1737129037901,-535.77,0.00023199,2]
[349348820,1737129037910,-500.0,0.00023199,2]
[349348822,1737129037919,-500.0,0.00023199,2]
[349348824,1737129037929,-500.0,0.00023199,2]
[349348826,1737129037939,-500.0,0.00023199,2]
[349348828,1737129037948,-500.0,0.00023199,2]
[349348830,1737129037958,-500.0,0.00023199,2]
[349348832,1737129037970,-500.0,0.00023199,2]
[349348834,1737129037982,-449.26,0.00023199,2]
[349348836,1737129037991,-500.0,0.00023199,2]
[349348838,1737129038000,-500.0,0.00023199,2]
[349348839,1737129038010,-500.0,0.00023199,2]
[349348841,1737129038020,-506.75,0.00023199,2]
[349348844,1737129038029,-500.0,0.00023199,2]
[349348846,1737129038040,-500.0,0.00023199,2]
[349348847,1737129038051,-500.0,0.00023199,2]
[349348849,1737129038062,-500.0,0.00023199,2]
[349348851,1737129038071,-500.0,0.00023199,2]
[349348853,1737129038081,-500.0,0.00023199,2]
[349348856,1737129038090,-500.0,0.00023199,2]
[349348858,1737129038099,-500.0,0.00023199,2]
[349348860,1737129038109,-500.0,0.00023199,2]
[349348861,1737129038119,-500.0,0.00023199,2]
[349348864,1737129038128,-500.0,0.00023199,2]
[349348865,1737129038138,-500.0,0.00023199,2]
[349348867,1737129038148,-313.66,0.00023199,2]
[349348870,1737129038159,-500.0,0.00023199,2]
[349348872,1737129038168,-500.0,0.00023199,2]
[349348874,1737129038177,-500.0,0.00023199,2]
[349348876,1737129038187,-500.0,0.00023199,2]
[349348878,1737129038196,-442.53,0.00023199,2]
[349348880,1737129038206,-500.0,0.00023199,2]
[349348882,1737129038215,-500.0,0.00023199,2]
[349348884,1737129038225,-500.0,0.00023199,2]
[349348886,1737129038234,-500.0,0.00023199,2]
[349348889,1737129038243,-164.95,0.00023199,2]
[349348892,1737129038252,-443.09,0.00023199,2]
[349348895,1737129038261,-500.0,0.00023199,2]
[349348898,1737129038270,-500.0,0.00023199,2]
[349348900,1737129038294,-500.0,0.00023199,2]
[349348902,1737129038303,-500.0,0.00023199,2]
[349348904,1737129038312,-315.04,0.00023199,2]
[349348905,1737129038322,-500.0,0.00023199,2]
[349348908,1737129038333,-500.0,0.00023199,2]
[349348910,1737129038344,-571.62,0.00023199,2]
[349348912,1737129038353,-500.0,0.00023199,2]
[349348914,1737129038362,-306.96,0.00023199,2]
[349348915,1737129038372,-500.0,0.00023199,2]
[349348918,1737129038382,-500.0,0.00023199,2]
[349348919,1737129038391,-500.0,0.00023199,2]
[349348921,1737129038400,-500.0,0.00023199,2]
[349348924,1737129038410,-500.0,0.00023199,2]
[349348925,1737129038419,-216.66524171,0.00023199,2]
[349348927,1737129038429,-164.41,0.00023199,2]
[349348930,1737129038439,-500.0,0.00023199,2]
[349348932,1737129038449,-500.0,0.00023199,2]
[349348934,1737129038459,-500.0,0.00023199,2]
[349348936,1737129038468,-500.0,0.00023199,2]
[349348937,1737129038477,-500.0,0.00023199,2]
[349348940,1737129038486,-386.57,0.00023199,2]
[349348942,1737129038497,-666.0,0.00023199,2]
[349348944,1737129038506,-911619.72974952,0.000232,2]
[349348958,1737129038637,-425.35551187,0.000232,2]
[349348961,1737129038656,-978.51000002,0.000232,2]
[349348964,1737129038675,-348.60001388,0.00023097,2]
[349348966,1737129038687,-151.39998612,0.00023097,2]
[349348968,1737129038696,-13568.31980697,0.000232,2]
[349348970,1737129038707,-14315.84987334,0.000232,2]
[349348973,1737129038719,-57205.72301439,0.000232,2]
[349348975,1737129038735,-500.0,0.00023197,2]
[349348977,1737129038744,-4465.893,0.000232,2]
[349348979,1737129038755,-1904.00404914,0.000232,2]
[349348982,1737129038769,-491.255009,0.000232,2]
[349348991,1737129038948,-359.36055184,0.00022933,2]
[349348993,1737129038965,-983.06288309,0.00022933,2]
[349348995,1737129038975,-500.0,0.00023097,2]
[349348997,1737129038985,-500.0,0.00023098,2]
[349348999,1737129038996,-500.0,0.00023199,2]
[349349001,1737129039007,-500.0,0.00023199,2]
[349349003,1737129039017,-500.0,0.00023199,2]
[349349005,1737129039028,-267.11827711,0.00023199,2]
[349349008,1737129039043,-232.88172289,0.00023199,2]
[349349010,1737129039055,-500.0,0.00023199,2]
[349349012,1737129039067,-499.155,0.00023199,2]
[349349014,1737129039078,-129.9444098,0.000232,2]
[349349016,1737129039091,-1805.85335049,0.000232,2]
[349349018,1737129039103,-1744.27339927,0.000232,2]
[349349021,1737129039116,-521.33726587,0.000232,2]
[349349023,1737129039127,-5794.79354498,0.000232,2]
[349349025,1737129039139,-10513.85051939,0.000232,2]
[349349027,1737129039151,-5201.5,0.000232,2]
[349349030,1737129039164,-1112.8,0.000232,2]
[349349032,1737129039177,-5497.224858,0.000232,2]
[349349038,1737129039223,-139.6183085,0.000232,2]
[349349040,1737129039237,-368608.49853295,0.000232,2]
[349349042,1737129039248,-12361.4145047,0.000232,2]
[349349044,1737129039259,-4612106.23093894,0.000232,2]
[349349106,1737129039828,-616.041906,0.00021388,2]
[349349108,1737129039839,-93837.22,0.000225,2]
[349349110,1737129039850,-1342.42343492,0.00022952,2]
[349349111,1737129039861,-500.0,0.00023097,2]
[349349112,1737129039872,-500.0,0.00023099,2]
[349349113,1737129039883,-611520.68763867,0.000232,2]
[349349114,1737129039896,-15607.152,0.000232,2]
[349349115,1737129040102,-1699.68651401,0.000232,2]
[349349118,1737129040197,-386.0,0.000232,2]
[349349175,1737129042777,-500.0,0.00023097,2]
[349349176,1737129042794,-515.09,0.00023099,2]
[349349177,1737129042805,-214.0999915,0.000232,2]
[349349179,1737129042953,-36202.49070667,0.00023099,2]
[349349181,1737129042968,-281932.08995986,0.000232,2]
[349349438,1737129045462,-500.0,0.00022567,2]
[349349441,1737129045473,-406.254892,0.0002297,2]
[349349445,1737129045486,-936.16854292,0.0002297,2]
[349349448,1737129045497,-616.04190599,0.000231,2]
[349349451,1737129045507,-8415.38955109,0.000232,2]
[349349454,1737129045525,-14009.20571159,0.000232,2]
[349349469,1737129045658,-1602.72513,0.000232,2]
[349349471,1737129045670,-10248.63638995,0.000232,2]
[349349476,1737129045714,-252.77790372,0.000232,2]
[349349673,1737129517401,205.58,0.00010137,2]
[349349676,1737129870808,150.0,0.00023392,120]
[349349677,1737130008675,1666.12510045,0.000245,30]
[349349678,1737130044101,-190.74,0.00012329,2]
[349349679,1737130044125,-500.0,0.00015375,2]
[349349680,1737130044147,-205.58,0.00016813,2]
[349349681,1737130044169,-777.67759404,0.0002,2]
[349349682,1737130053100,-273.51140944,0.0002,2]
[349349686,1737130188526,1012.017,0.000245,30]
[349349693,1737130231668,-2219.56009322,0.0002,2]
[349349694,1737130231678,-1328.38,0.00020179,2]
[349349695,1737130231689,-3753.0,0.00021,2]
[349349696,1737130231701,-167.71,0.00021336,2]
[349349697,1737130231710,-160.9,0.00021364,2]
[349349698,1737130231720,-2944.11,0.00021372,2]
[349349699,1737130231729,-1788.11,0.00021395,2]
[349349700,1737130231739,-250.0,0.00021411,2]
[349349701,1737130231748,-1609.75350678,0.00021422,2]
[349349702,1737130231759,-7755.79649322,0.00021422,2]
[349349703,1737130231769,-234.38,0.00021422,2]
[349349704,1737130231778,-500.0,0.00021435,2]
[349349705,1737130231787,-168.66,0.00021566,2]
[349349706,1737130231797,-233.14,0.00021566,2]
[349349707,1737130231807,-2729.60071989,0.00021579,2]
[349349708,1737130231820,-1640.41786084,0.00021579,2]
[349349709,1737130231839,-654.87000002,0.00021579,2]
[349349710,1737130231852,-3204.17518437,0.00021579,2]
[349349711,1737130231864,-15670.93623488,0.00021579,2]
[349349712,1737130231874,-1128.1,0.00021757,2]
[349349713,1737130231884,-29999.99,0.00021757,2]
[349349714,1737130231893,-3187.8,0.00021757,2]
[349349715,1737130231903,-29999.99,0.00021757,2]
[349349716,1737130231912,-1634.72330444,0.00021762,2]
[349349717,1737130231923,-150.0,0.00021862,2]
[349349718,1737130231933,-1986.48995507,0.000219,3]
[349349719,1737130231944,-4282.74,0.00021902,2]
[349349720,1737130231955,-1634.72330443,0.00021911,2]
[349349721,1737130231964,-150.0,0.00021961,2]
[349349722,1737130231975,-200.0,0.00021961,2]
[349349723,1737130231984,-1986.48995485,0.00021969,3]
[349349724,1737130231994,-700.0744,0.00021997,2]
[349349725,1737130232004,-2037.8867,0.00021997,2]
[349349726,1737130232014,-727.94766666,0.00022,4]
[349349727,1737130232023,-1986.48995485,0.00022038,3]
[349349728,1737130232033,-1634.72330443,0.00022059,2]
[349349729,1737130232042,-294.02,0.00022097,2]
[349349730,1737130232053,-250.0,0.00022097,2]
[349349731,1737130232062,-744.68,0.00022097,2]
[349349732,1737130232072,-200.0,0.00022097,2]
[349349733,1737130232082,-1500.0,0.00022097,2]
[349349734,1737130232091,-250.0,0.00022097,2]
[349349735,1737130232101,-1986.48995485,0.00022107,3]
[349349736,1737130232110,-1000.0,0.00022127,2]
[349349737,1737130232119,-1986.48995485,0.00022176,3]
[349349738,1737130232128,-1634.72330443,0.00022208,2]
[349349739,1737130232137,-280.8,0.00022229,2]
[349349740,1737130232146,-1921.745,0.00022236,2]
[349349741,1737130232155,-175.099,0.00022236,2]
[349349743,1737130232165,-1986.48995485,0.00022245,3]
[349349745,1737130232175,-1986.48995485,0.00022314,3]
[349349747,1737130232184,-1634.72330443,0.00022357,2]
[349349748,1737130232193,-150.0,0.00022373,2]
[349349749,1737130232202,-1986.48995485,0.00022383,3]
[349349751,1737130232212,-150.0,0.00022386,2]
[349349752,1737130232221,-150.0,0.00022388,2]
[349349754,1737130232230,-150.0,0.00022401,2]
[349349756,1737130232239,-150.0,0.00022431,2]
[349349758,1737130232248,-1328.38,0.00022443,2]
[349349760,1737130232257,-1986.48995485,0.00022452,3]
[349349762,1737130232267,-150.0,0.00022455,2]
[349349764,1737130232276,-171.72,0.00022473,2]
[349349766,1737130232285,-150.0,0.00022505,2]
[349349768,1737130232297,-1634.72330443,0.00022505,2]
[349349770,1737130232307,-1986.48995485,0.00022521,3]
[349349772,1737130232316,-1986.48995485,0.0002259,3]
[349349774,1737130232325,-150.0,0.00022615,2]
[349349776,1737130232335,-150.0,0.00022636,2]
[349349778,1737130232344,-1634.72330443,0.00022654,2]
[349349780,1737130232353,-1986.48995485,0.00022659,3]
[349349782,1737130232362,-500.0,0.00022685,2]
[349349784,1737130232373,-1986.48995485,0.00022728,3]
[349349786,1737130232383,-1986.48995485,0.00022797,3]
[349349788,1737130232392,-2500.0,0.000228,2]
[349349790,1737130232401,-1634.72330443,0.00022803,2]
[349349792,1737130232410,-1986.48995485,0.00022866,3]
[349349794,1737130232419,-150.0,0.00022879,2]
[349349796,1737130232428,-213.0707115,0.00022888,2]
[349349798,1737130232437,-165.05893839,0.00022888,2]
[349349800,1737130232447,-150.0,0.00022889,2]
[349349802,1737130232456,-778.65561512,0.00022894,2]
[349349804,1737130232465,-5000.0,0.00022899,2]
[349349806,1737130232475,-500.0,0.00022899,2]
[349349808,1737130232484,-500.0,0.00022899,2]
[349349810,1737130232493,-500.0,0.00022899,2]
[349349812,1737130232502,-500.0,0.00022899,2]
[349349814,1737130232511,-1067.07,0.00022899,2]
[349349816,1737130232521,-500.0,0.00022899,2]
[349349818,1737130232529,-500.0,0.00022899,2]
[349349820,1737130232538,-500.0,0.00022899,2]
[349349821,1737130232547,-500.0,0.00022899,2]
[349349823,1737130232557,-3166.5811,0.000229,2]
[349349825,1737130232566,-44631.5306,0.000229,2]
[349349827,1737130232576,-150.0,0.00022905,2]
[349349829,1737130232585,-778.65561503,0.00022909,2]
[349349831,1737130232594,-744.68,0.00022914,2]
[349349833,1737130232603,-165.05893835,0.00022923,2]
[349349835,1737130232613,-778.65561503,0.00022923,2]
[349349837,1737130232621,-1000.0,0.00022933,2]
[349349839,1737130232630,-1986.48995485,0.00022934,3]
[349349841,1737130232639,-778.65561503,0.00022938,2]
[349349843,1737130232649,-1634.72330443,0.00022951,2]
[349349844,1737130232658,-778.65561503,0.00022953,2]
[349349845,1737130232667,-165.05893835,0.00022959,2]
[349349846,1737130232677,-500.0,0.00022966,2]
[349349847,1737130232688,-500.0,0.00022966,2]
[349349848,1737130232697,-500.0,0.00022966,2]
[349349850,1737130232706,-500.0,0.00022966,2]
[349349852,1737130232715,-500.0,0.00022966,2]
[349349854,1737130232724,-594.61972001,0.00022966,2]
[349349855,1737130232733,-500.0,0.00022966,2]
[349349857,1737130232742,-500.0,0.00022966,2]
[349349859,1737130232752,-500.0,0.00022966,2]
[349349861,1737130232760,-500.0,0.00022966,2]
[349349862,1737130232770,-500.0,0.00022966,2]
[349349864,1737130232779,-500.0,0.00022966,2]
[349349866,1737130232789,-547.15,0.00022966,2]
[349349868,1737130232798,-500.0,0.00022966,2]
[349349870,1737130232809,-500.0,0.00022966,2]
[349349871,1737130232819,-778.65561503,0.00022968,2]
[349349873,1737130232829,-296.05,0.00022968,2]
[349349875,1737130232838,-2703.79581,0.0002297,2]
[349349877,1737130232848,-150.69,0.0002297,2]
[349349878,1737130232858,-503.80058172,0.00022973,2]
[349349880,1737130232867,-500.0,0.00022973,2]
[349349882,1737130232877,-500.0,0.00022978,2]
[349349884,1737130232886,-500.0,0.00022978,2]
[349349885,1737130232896,-500.0,0.00022978,2]
[349349887,1737130232906,-500.0,0.00022978,2]
[349349889,1737130232915,-1367.33,0.00022978,2]
[349349891,1737130232925,-500.0,0.00022978,2]
[349349893,1737130232934,-500.0,0.00022978,2]
[349349894,1737130232943,-500.0,0.00022978,2]
[349349896,1737130232954,-500.0,0.00022978,2]
[349349898,1737130232964,-500.0,0.00022978,2]
[349349900,1737130232974,-500.0,0.00022978,2]
[349349902,1737130232983,-500.0,0.00022978,2]
[349349904,1737130232992,-500.0,0.00022978,2]
[349349906,1737130233001,-500.0,0.00022978,2]
[349349907,1737130233010,-500.0,0.00022978,2]
[349349909,1737130233020,-500.0,0.00022978,2]
[349349911,1737130233030,-500.0,0.00022978,2]
[349349913,1737130233039,-164.41,0.00022979,2]
[349349914,1737130233049,-500.0,0.00022979,2]
[349349916,1737130233061,-292.66182907,0.00022979,2]
[349349918,1737130233070,-172.06,0.00022979,2]
[349349920,1737130233080,-500.0,0.00022979,2]
[349349922,1737130233090,-500.0,0.00022979,2]
[349349923,1737130233099,-499.4,0.00022979,2]
[349349925,1737130233109,-500.0,0.00022979,2]
[349349927,1737130233118,-500.0,0.00022979,2]
[349349929,1737130233128,-500.0,0.00022979,2]
[349349930,1737130233138,-500.0,0.00022979,2]
[349349932,1737130233147,-500.0,0.00022979,2]
[349349934,1737130233156,-500.0,0.00022979,2]
[349349936,1737130233165,-500.0,0.00022979,2]
[349349938,1737130233175,-500.0,0.00022979,2]
[349349940,1737130233185,-500.0,0.00022979,2]
[349349942,1737130233194,-500.0,0.00022979,2]
[349349943,1737130233204,-615.49,0.00022979,2]
[349349945,1737130233213,-500.0,0.00022979,2]
[349349947,1737130233224,-500.0,0.00022979,2]
[349349949,1737130233233,-500.0,0.00022979,2]
[349349950,1737130233243,-231.21,0.00022979,2]
[349349952,1737130233253,-500.0,0.00022979,2]
[349349954,1737130233262,-185.59,0.00022979,2]
[349349956,1737130233272,-500.0,0.00022979,2]
[349349958,1737130233281,-537.16,0.00022979,2]
[349349960,1737130233291,-500.0,0.00022979,2]
[349349961,1737130233306,-178.72,0.00022979,2]
[349349963,1737130233315,-290.14,0.00022979,2]
[349349965,1737130233326,-1367.33,0.00022979,2]
[349349967,1737130233337,-1367.33,0.00022979,2]
[349349969,1737130233347,-1367.33,0.00022979,2]
[349349971,1737130233356,-1367.33,0.00022979,2]
[349349973,1737130233366,-1367.33,0.00022979,2]
[349349974,1737130233377,-1367.33,0.00022979,2]
[349349976,1737130233387,-505.72,0.00022979,2]
[349349978,1737130233398,-500.0,0.00022979,2]
[349349980,1737130233407,-500.0,0.00022979,2]
[349349982,1737130233417,-500.0,0.00022979,2]
[349349983,1737130233426,-397.79,0.00022979,2]
[349349985,1737130233436,-500.0,0.00022979,2]
[349349987,1737130233445,-500.0,0.00022979,2]
[349349989,1737130233454,-644.52,0.00022979,2]
[349349991,1737130233464,-500.0,0.00022979,2]
[349349992,1737130233473,-500.0,0.00022979,2]
[349349994,1737130233483,-500.0,0.00022979,2]
[349349996,1737130233493,-500.0,0.00022979,2]
[349349998,1737130233504,-500.0,0.00022979,2]
[349350000,1737130233513,-500.0,0.00022979,2]
[349350002,1737130233523,-500.0,0.00022979,2]
[349350004,1737130233533,-500.0,0.00022979,2]
[349350005,1737130233543,-500.0,0.00022979,2]
[349350007,1737130233553,-244.24,0.00022979,2]
[349350009,1737130233563,-498.81,0.00022979,2]
[349350011,1737130233574,-1067.07,0.00022979,2]
[349350013,1737130233584,-1067.07,0.00022979,2]
[349350015,1737130233594,-1067.07,0.00022979,2]
[349350017,1737130233604,-1067.07,0.00022979,2]
[349350019,1737130233614,-1067.07,0.00022979,2]
[349350020,1737130233623,-500.0,0.00022979,2]
[349350022,1737130233633,-1067.07,0.00022979,2]
[349350024,1737130233643,-500.0,0.00022979,2]
[349350026,1737130233653,-1067.07,0.00022979,2]
[349350028,1737130233662,-500.0,0.00022979,2]
[349350030,1737130233673,-330.64,0.00022979,2]
[349350032,1737130233683,-500.0,0.00022979,2]
[349350034,1737130233693,-500.0,0.00022979,2]
[349350035,1737130233703,-500.0,0.00022979,2]
[349350037,1737130233713,-500.0,0.00022979,2]
[349350039,1737130233723,-500.0,0.00022979,2]
[349350041,1737130233733,-500.0,0.00022979,2]
[349350043,1737130233743,-478.85,0.00022979,2]
[349350045,1737130233752,-500.0,0.00022979,2]